Workbook

Sheet 每月預算摘要
B1: 公司名稱
B2: 每月預算 | E2: 日期
B4: 預算總額 | C4: 預估 | D4: 實際 | E4: 差額
B5: 收入 | C5: =收入[[#Totals],[預估]] -> 63,300.00 | D5: =收入[[#Totals],[實際]] -> 57,450.00 | E5: =總計[[#This Row],[實際]]-總計[[#This Row],[預估]] -> (5,850.00)
B6: 支出 | C6: =營運支出[[#Totals],[預估]]+人事支出[[#Totals],[預估]] -> 54,500.00 | D6: =營運支出[[#Totals],[實際]]+人事支出[[#Totals],[實際]] -> 49,630.00 | E6: =總計[[#This Row],[實際]]-總計[[#This Row],[預估]] -> (4,870.00)
B7: 餘額 (收入扣除支出) | C7: =C5-C6 -> 8,800.00 | D7: =D5-D6 -> 7,820.00 | E7: =總計[[#Totals],[實際]]-總計[[#Totals],[預估]] -> (980.00)
B9: 此儲存格為 [預算總覽] 圖表。下方的 [前5大項支出] 表格會自動更新前 5 大項營運支出。
B10: 營運支出中最高的前 5 項為何？
B11: 支出 | C11: 金額 | D11: 支出百分比 | E11: 減少 15%
B12: =INDEX(營運支出[],MATCH(前5大項支出[[#This Row],[金額]],營運支出[前 5 大金額],0),1) -> 保養及維修 | C12: =LARGE(營運支出[前 5 大金額],1) -> 4,600.00 | D12: =前5大項支出[[#This Row],[金額]]/$D$6 -> 9.3% | E12: =前5大項支出[[#This Row],[金額]]*0.15 -> 690.00
B13: =INDEX(營運支出[],MATCH(前5大項支出[[#This Row],[金額]],營運支出[前 5 大金額],0),1) -> 辦公室用品 | C13: =LARGE(營運支出[前 5 大金額],2) -> 4,500.00 | D13: =前5大項支出[[#This Row],[金額]]/$D$6 -> 9.1% | E13: =前5大項支出[[#This Row],[金額]]*0.15 -> 675.00
B14: =INDEX(營運支出[],MATCH(前5大項支出[[#This Row],[金額]],營運支出[前 5 大金額],0),1) -> 房租或貸款 | C14: =LARGE(營運支出[前 5 大金額],3) -> 4,500.00 | D14: =前5大項支出[[#This Row],[金額]]/$D$6 -> 9.1% | E14: =前5大項支出[[#This Row],[金額]]*0.15 -> 675.00
B15: =INDEX(營運支出[],MATCH(前5大項支出[[#This Row],[金額]],營運支出[前 5 大金額],0),1) -> 稅金 | C15: =LARGE(營運支出[前 5 大金額],4) -> 3,200.00 | D15: =前5大項支出[[#This Row],[金額]]/$D$6 -> 6.4% | E15: =前5大項支出[[#This Row],[金額]]*0.15 -> 480.00
B16: =INDEX(營運支出[],MATCH(前5大項支出[[#This Row],[金額]],營運支出[前 5 大金額],0),1) -> 廣告 | C16: =LARGE(營運支出[前 5 大金額],5) -> 2,500.00 | D16: =前5大項支出[[#This Row],[金額]]/$D$6 -> 5.0% | E16: =前5大項支出[[#This Row],[金額]]*0.15 -> 375.00
B17: 合計 | C17: =SUBTOTAL(109,前5大項支出[金額]) -> 19,300.00 | D17: =SUBTOTAL(109,前5大項支出[支出百分比]) -> 38.9% | E17: =SUBTOTAL(109,前5大項支出[減少 15%]) -> 2,895.00

Sheet 收入
B1: =公司_名稱 -> 公司名稱
B2: =預算_標題 -> 每月預算
B4: 收入 | C4: 預估 | D4: 實際 | E4: 前 5 大金額 | F4: 差額
B5: 淨銷售額 | C5: 60,000.00 | D5: 54,000.00 | E5: =收入[[#This Row],[實際]]+(10^-6)*ROW(收入[[#This Row],[實際]]) -> 54,000.00 | F5: =收入[[#This Row],[實際]]-收入[[#This Row],[預估]] -> (6,000.00)
B6: 利息收益 | C6: 3,000.00 | D6: 3,000.00 | E6: =收入[[#This Row],[實際]]+(10^-6)*ROW(收入[[#This Row],[實際]]) -> 3,000.00 | F6: =收入[[#This Row],[實際]]-收入[[#This Row],[預估]] -> 0.00
B7: 資產銷售 (獲利/虧損) | C7: 300.00 | D7: 450.00 | E7: =收入[[#This Row],[實際]]+(10^-6)*ROW(收入[[#This Row],[實際]]) -> 450.00 | F7: =收入[[#This Row],[實際]]-收入[[#This Row],[預估]] -> 150.00
B8: 收入總額 | C8: =SUBTOTAL(109,收入[預估]) -> 63,300.00 | D8: =SUBTOTAL(109,收入[實際]) -> 57,450.00 | F8: =SUBTOTAL(109,收入[差額]) -> (5,850.00)

Sheet 人事支出
B1: =公司_名稱 -> 公司名稱
B2: =預算_標題 -> 每月預算
B4: 人事支出 | C4: 預估 | D4: 實際 | E4: 前 5 大金額 | F4: 差額
B5: 薪資 | C5: 9,500.00 | D5: 9,600.00 | E5: =人事支出[[#This Row],[實際]]+(10^-6)*ROW(人事支出[[#This Row],[實際]]) -> 9,600.00 | F5: =人事支出[[#This Row],[預估]]-人事支出[[#This Row],[實際]] -> (100.00)
B6: 員工津貼 | C6: 4,000.00 | D6: 0.00 | E6: =人事支出[[#This Row],[實際]]+(10^-6)*ROW(人事支出[[#This Row],[實際]]) -> 0.00 | F6: =人事支出[[#This Row],[預估]]-人事支出[[#This Row],[實際]] -> 4,000.00
B7: 佣金 | C7: 5,000.00 | D7: 4,500.00 | E7: =人事支出[[#This Row],[實際]]+(10^-6)*ROW(人事支出[[#This Row],[實際]]) -> 4,500.00 | F7: =人事支出[[#This Row],[預估]]-人事支出[[#This Row],[實際]] -> 500.00
B8: 人事支出總額 | C8: =SUBTOTAL(109,人事支出[預估]) -> 18,500.00 | D8: =SUBTOTAL(109,人事支出[實際]) -> 14,100.00 | F8: =SUBTOTAL(109,人事支出[差額]) -> 4,400.00

Sheet 營運支出
B1: =公司_名稱 -> 公司名稱
B2: =預算_標題 -> 每月預算
B4: 營運支出 | C4: 預估 | D4: 實際 | E4: 前 5 大金額 | F4: 差額
B5: 公用事業費用 | C5: 1,400.00 | D5: 1,385.00 | E5: =營運支出[[#This Row],[實際]]+(10^-6)*ROW(營運支出[[#This Row],[實際]]) -> 1,385.00 | F5: =營運支出[[#This Row],[預估]]-營運支出[[#This Row],[實際]] -> 15.00
B6: 利息 | C6: 2,000.00 | D6: 2,200.00 | E6: =營運支出[[#This Row],[實際]]+(10^-6)*ROW(營運支出[[#This Row],[實際]]) -> 2,200.00 | F6: =營運支出[[#This Row],[預估]]-營運支出[[#This Row],[實際]] -> (200.00)
B7: 呆帳 | C7: 2,000.00 | D7: 2,000.00 | E7: =營運支出[[#This Row],[實際]]+(10^-6)*ROW(營運支出[[#This Row],[實際]]) -> 2,000.00 | F7: =營運支出[[#This Row],[預估]]-營運支出[[#This Row],[實際]] -> 0.00
B8: 折舊 | C8: 1,000.00 | D8: 1,000.00 | E8: =營運支出[[#This Row],[實際]]+(10^-6)*ROW(營運支出[[#This Row],[實際]]) -> 1,000.00 | F8: =營運支出[[#This Row],[預估]]-營運支出[[#This Row],[實際]] -> 0.00
B9: 其他 | C9: 1,000.00 | D9: 750.00 | E9: =營運支出[[#This Row],[實際]]+(10^-6)*ROW(營運支出[[#This Row],[實際]]) -> 750.00 | F9: =營運支出[[#This Row],[預估]]-營運支出[[#This Row],[實際]] -> 250.00
B10: 房租或貸款 | C10: 4,100.00 | D10: 4,500.00 | E10: =營運支出[[#This Row],[實際]]+(10^-6)*ROW(營運支出[[#This Row],[實際]]) -> 4,500.00 | F10: =營運支出[[#This Row],[預估]]-營運支出[[#This Row],[實際]] -> (400.00)
B11: 法律與稽核 | C11: 1,000.00 | D11: 800.00 | E11: =營運支出[[#This Row],[實際]]+(10^-6)*ROW(營運支出[[#This Row],[實際]]) -> 800.00 | F11: =營運支出[[#This Row],[預估]]-營運支出[[#This Row],[實際]] -> 200.00
B12: 保養及維修 | C12: 4,500.00 | D12: 4,600.00 | E12: =營運支出[[#This Row],[實際]]+(10^-6)*ROW(營運支出[[#This Row],[實際]]) -> 4,600.00 | F12: =營運支出[[#This Row],[預估]]-營運支出[[#This Row],[實際]] -> (100.00)
B13: 保險 | C13: 1,300.00 | D13: 1,275.00 | E13: =營運支出[[#This Row],[實際]]+(10^-6)*ROW(營運支出[[#This Row],[實際]]) -> 1,275.00 | F13: =營運支出[[#This Row],[預估]]-營運支出[[#This Row],[實際]] -> 25.00
B14: 配送成本 | C14: 2,000.00 | D14: 1,500.00 | E14: =營運支出[[#This Row],[實際]]+(10^-6)*ROW(營運支出[[#This Row],[實際]]) -> 1,500.00 | F14: =營運支出[[#This Row],[預估]]-營運支出[[#This Row],[實際]] -> 500.00
B15: 現金折扣 | C15: 1,500.00 | D15: 2,175.00 | E15: =營運支出[[#This Row],[實際]]+(10^-6)*ROW(營運支出[[#This Row],[實際]]) -> 2,175.00 | F15: =營運支出[[#This Row],[預估]]-營運支出[[#This Row],[實際]] -> (675.00)
B16: 貨運與倉儲 | C16: 900.00 | D16: 840.00 | E16: =營運支出[[#This Row],[實際]]+(10^-6)*ROW(營運支出[[#This Row],[實際]]) -> 840.00 | F16: =營運支出[[#This Row],[預估]]-營運支出[[#This Row],[實際]] -> 60.00
B17: 稅金 | C17: 3,000.00 | D17: 3,200.00 | E17: =營運支出[[#This Row],[實際]]+(10^-6)*ROW(營運支出[[#This Row],[實際]]) -> 3,200.00 | F17: =營運支出[[#This Row],[預估]]-營運支出[[#This Row],[實際]] -> (200.00)
B18: 郵資 | C18: 400.00 | D18: 350.00 | E18: =營運支出[[#This Row],[實際]]+(10^-6)*ROW(營運支出[[#This Row],[實際]]) -> 350.00 | F18: =營運支出[[#This Row],[預估]]-營運支出[[#This Row],[實際]] -> 50.00
B19: 會費與訂閱費用 | C19: 500.00 | D19: 525.00 | E19: =營運支出[[#This Row],[實際]]+(10^-6)*ROW(營運支出[[#This Row],[實際]]) -> 525.00 | F19: =營運支出[[#This Row],[預估]]-營運支出[[#This Row],[實際]] -> (25.00)
B20: 電話 | C20: 250.00 | D20: 280.00 | E20: =營運支出[[#This Row],[實際]]+(10^-6)*ROW(營運支出[[#This Row],[實際]]) -> 280.00 | F20: =營運支出[[#This Row],[預估]]-營運支出[[#This Row],[實際]] -> (30.00)
B21: 廣告 | C21: 3,000.00 | D21: 2,500.00 | E21: =營運支出[[#This Row],[實際]]+(10^-6)*ROW(營運支出[[#This Row],[實際]]) -> 2,500.00 | F21: =營運支出[[#This Row],[預估]]-營運支出[[#This Row],[實際]] -> 500.00
B22: 銷售費用 | C22: 350.00 | D22: 400.00 | E22: =營運支出[[#This Row],[實際]]+(10^-6)*ROW(營運支出[[#This Row],[實際]]) -> 400.00 | F22: =營運支出[[#This Row],[預估]]-營運支出[[#This Row],[實際]] -> (50.00)
B23: 辦公室用品 | C23: 800.00 | D23: 750.00 | E23: =營運支出[[#This Row],[實際]]+(10^-6)*ROW(營運支出[[#This Row],[實際]]) -> 750.00 | F23: =營運支出[[#This Row],[預估]]-營運支出[[#This Row],[實際]] -> 50.00
B24: 辦公室用品 | C24: 5,000.00 | D24: 4,500.00 | E24: =營運支出[[#This Row],[實際]]+(10^-6)*ROW(營運支出[[#This Row],[實際]]) -> 4,500.00 | F24: =營運支出[[#This Row],[預估]]-營運支出[[#This Row],[實際]] -> 500.00
B25: 營運支出總額 | C25: =SUBTOTAL(109,營運支出[預估]) -> 36,000.00 | D25: =SUBTOTAL(109,營運支出[實際]) -> 35,530.00 | F25: =SUBTOTAL(109,營運支出[差額]) -> 470.00
